bitfinex-derivatives/quotes_ETHF0:USTF0_20251025
["timestamp","ask_amount","ask_price","bid_price","bid_amount"]
[1761397460839,0.5899,3949.5,3949.4,8.956]
[1761397461439,0.9387,3949.5,3949.4,9.0095]
[1761397463140,0.9387,3949.5,3949.4,9.063]
[1761397463741,0.3488,3949.8,3949.7,0.1605]
[1761397463940,0.3488,3949.8,3949.7,9.1165]
[1761397465842,0.5822,3949.8,3949.7,9.063]
[1761397467243,0.3488,3949.8,3949.7,9.1165]
[1761397473449,0.9046771,3950.2,3950.1,0.1605]
[1761397473450,1.2534771,3950.2,3950.1,0.1605]
[1761397473744,1.4868771,3950.2,3950.1,9.063]
[1761397473949,1.7019771,3950.2,3950.1,9.063]
[1761397474548,1.7019771,3950.2,3950.1,8.956]
[1761397474847,0.3488,3949.9,3949.8,0.0535]
[1761397475049,0.7973,3949.9,3949.8,7.7075]
[1761397476748,0.1414,3949.5,3949.4,4.62606002]
[1761397476942,0.3488,3949.5,3949.4,13.68906002]
[1761397477148,0.3488,3949.5,3949.4,12.78001]
[1761397477651,0.7236,3949.5,3949.4,1.01803831]
[1761397477842,0.4902,3949.5,3949.4,10.02753831]
[1761397485151,0.3525,3949.7,3949.6,0.1608]
[1761397485350,0.1414,3950.0,3949.9,0.1608]
[1761397485553,0.1414,3950.0,3949.9,9.1168]
[1761397485962,0.4939,3950.0,3949.9,9.1168]
[1761397487148,0.9249,3950.0,3949.9,9.0632]
[1761397487658,0.7062,3950.0,3949.9,9.1168]
[1761397489357,0.7062,3950.0,3949.9,9.0632]
[1761397489852,0.9249,3950.0,3949.9,0.1072]
[1761397490047,0.9249,3950.0,3949.9,9.0622]
[1761397494159,0.9249,3950.0,3949.9,8.955]
[1761397494559,0.9249,3950.0,3949.9,9.0622]
[1761397498268,0.9249,3950.0,3949.9,8.955]
[1761397500067,0.9249,3950.0,3949.9,9.0086]
[1761397500471,0.9249,3950.0,3949.9,8.955]
[1761397500671,0.9249,3950.0,3949.9,9.0086]
[1761397500869,0.9249,3950.0,3949.9,9.0622]
[1761397503572,0.4939,3950.0,3949.9,9.1158]
[1761397505874,0.7094,3950.0,3949.9,9.0622]
[1761397507077,0.7094,3950.0,3949.9,9.1158]
[1761397509984,0.7094,3950.0,3949.9,9.0622]
[1761397510384,0.9389,3950.0,3949.9,9.0622]
[1761397510680,0.7094,3950.0,3949.9,9.0622]
[1761397510976,0.4939,3950.0,3949.9,9.1155]
[1761397512685,0.3525,3950.0,3949.9,9.1155]
[1761397512869,1.2283771,3950.2,3950.0,0.0533]
[1761397513185,0.9046771,3950.2,3950.1,0.1599]
[1761397513387,1.2283771,3950.2,3950.1,0.1599]
[1761397514192,0.9046771,3950.3,3950.1,0.56223]
[1761397514388,0.9174,3950.5,3950.4,0.1066]
[1761397514687,0.9174,3950.5,3950.4,9.0596]
[1761397515290,0.3237,3950.5,3950.4,9.1129]
[1761397515490,0.4601,3950.5,3950.4,9.1129]
[1761397517590,0.9174,3950.5,3950.4,9.0596]
[1761397518293,0.9174,3950.5,3949.9,0.91117745]
[1761397518294,0.3237,3950.4,3949.9,0.91117745]
[1761397518495,3.8957,3950.0,3949.9,0.1066]
[1761397518694,0.6879,3950.0,3949.9,7.3816]
[1761397518992,0.3237,3950.4,3949.9,7.3816]
[1761397519195,0.3237,3950.4,3950.3,0.1599]
[1761397519397,0.5515,3950.4,3950.3,0.1066]
[1761397519599,0.781,3950.4,3950.3,0.1066]
[1761397521098,0.781,3950.4,3950.3,9.0586]
[1761397521698,0.781,3950.4,3950.3,9.0053]
[1761397522897,0.5515,3950.4,3950.3,9.1119]
[1761397523103,0.781,3950.4,3950.3,9.0586]
[1761397523301,0.781,3950.4,3950.3,9.0053]
[1761397523800,0.781,3950.4,3950.3,0.0533]
[1761397525699,0.4573,3950.4,3950.2,6.916]
[1761397525905,0.781,3950.3,3950.2,0.0533]
[1761397526903,0.781,3949.6,3949.5,0.1066]
[1761397527106,0.781,3949.6,3949.5,9.0053]
[1761397527595,0.781,3949.6,3949.5,0.0533]
[1761397527796,0.781,3949.6,3949.5,9.0053]
[1761397527996,0.781,3949.6,3949.5,0.0533]
[1761397528197,0.781,3949.6,3949.5,6.4743]
[1761397530703,0.5515,3949.6,3949.5,6.5276]
[1761397530895,0.3237,3949.6,3949.5,6.5809]
[1761397531206,0.5515,3949.6,3949.5,6.5276]
[1761397531700,0.1364,3950.0,3949.3,0.05512547]
[1761397531701,0.4573,3949.4,3949.3,0.05512547]
[1761397531906,0.781,3949.4,3949.3,7.09182547]
[1761397532512,0.781,3949.4,3949.3,7.19842547]
[1761397533195,0.781,3949.4,3949.3,0.00182547]
[1761397533401,0.781,3949.4,3949.3,8.95382547]
[1761397533601,0.781,3949.4,3949.3,9.00712547]
[1761397534203,0.781,3949.4,3949.3,9.06042547]
[1761397534409,0.3237,3949.4,3949.3,9.11372547]
[1761397541213,0.7653,3949.4,3949.3,9.06022547]
[1761397546720,0.7653,3949.4,3949.3,0.10822547]
[1761397546924,0.7653,3949.4,3949.3,9.06122547]
[1761397549419,0.5365,3949.4,3949.3,9.11442547]
[1761397549818,0.3237,3949.4,3949.3,0.16142547]
[1761397550226,0.3237,3949.4,3949.3,7.03242547]
[1761397552221,3.5433,3949.6,3949.5,0.0532]
[1761397552428,3.5433,3949.6,3949.5,0.1596]
[1761397554724,1.24446149,3949.9,3949.5,0.1596]
[1761397554924,0.3355,3949.9,3949.8,0.1596]
[1761397557027,0.5483,3949.9,3949.8,0.1064]
[1761397559725,0.7771,3949.9,3949.8,0.1064]
[1761397560530,0.1395,3949.5,3949.4,0.73569119]
[1761397560825,0.1395,3949.5,3949.4,9.0584]
[1761397560826,0.7028,3949.5,3949.4,9.0584]
[1761397561128,0.9306,3949.5,3949.4,9.0584]
[1761397562124,0.9306,3949.5,3949.4,0.0532]
[1761397562325,0.9306,3949.5,3949.4,9.0052]
[1761397564232,0.9306,3949.5,3949.4,0.0532]
[1761397564436,0.9306,3949.5,3949.4,9.0052]
[1761397565937,0.9306,3949.5,3949.4,0.0532]
[1761397566140,0.9306,3949.5,3949.4,9.0052]
[1761397566634,0.9306,3949.5,3949.4,0.0532]
[1761397567023,0.9306,3949.5,3949.4,7.8842]
[1761397568437,0.9306,3949.5,3949.4,9.0042]
[1761397570048,0.4864,3949.5,3949.4,9.1122]
[1761397571636,0.3469,3949.5,3949.4,9.1122]
[1761397572532,0.9292,3949.5,3949.4,9.0582]
[1761397576948,0.7104,3949.5,3949.4,9.0582]
[1761397577244,0.9292,3949.5,3949.4,9.0042]
[1761397580644,0.9292,3949.5,3949.4,0.0532]
[1761397580843,0.9292,3949.5,3949.4,8.951]
[1761397582150,0.9292,3949.5,3949.4,9.005]
[1761397582851,0.9292,3949.5,3949.4,0.054]
[1761397583043,0.9292,3949.5,3949.4,9.005]
[1761397583948,0.9292,3949.5,3949.4,0.054]
[1761397584148,0.9292,3949.5,3949.4,9.004]
[1761397585156,0.9292,3949.5,3949.4,8.95]
[1761397586154,0.9292,3949.5,3949.4,9.004]
[1761397587457,0.7743,3949.4,3949.3,0.05582547]
[1761397587655,0.7743,3949.4,3949.3,9.00582547]
[1761397591256,0.7743,3949.4,3949.3,9.05982547]
[1761397592351,0.5555,3949.4,3949.3,9.05982547]
[1761397596461,0.7743,3949.4,3949.3,9.05982547]
[1761397601366,0.7743,3949.4,3949.3,0.10982547]
[1761397601564,0.7743,3949.4,3949.3,9.05882547]
[1761397607169,0.7743,3949.4,3949.3,9.11212547]
[1761397607170,0.5555,3949.4,3949.3,9.11212547]
[1761397607673,0.3229,3949.4,3949.3,9.11212547]
[1761397608165,0.3229,3949.4,3949.3,0.16312547]
[1761397608369,0.3229,3949.4,3949.3,8.11612547]
[1761397609868,0.5522,3949.4,3949.3,8.06282547]
[1761397611869,1.46137552,3949.4,3949.3,8.06282547]
[1761397613069,1.68057552,3949.4,3949.3,8.06282547]
[1761397615970,1.68057552,3949.4,3949.3,0.10982547]
[1761397616175,1.68057552,3949.4,3949.3,9.05782547]
[1761397620581,1.46137552,3949.4,3949.3,9.11162547]
[1761397621781,0.90917552,3949.4,3949.3,9.11162547]
[1761397621985,4.11697552,3949.5,3949.3,9.11162547]
[1761397622182,4.11697552,3949.5,3949.4,0.1614]
[1761397622382,0.3247,3949.5,3949.4,0.1614]
[1761397624684,1.23387552,3949.7,3949.5,0.0538]
[1761397624986,0.7673,3949.7,3949.6,0.0538]
[1761397625186,3.9751,3949.7,3949.6,9.0008]
[1761397625982,3.9751,3949.7,3949.6,9.0546]
[1761397627083,4.88500942,3949.7,3949.6,9.0546]
[1761397628589,0.6796,3949.5,3949.4,0.1066]
[1761397628789,0.6796,3949.5,3949.4,6.7646]
[1761397629499,0.6796,3949.5,3949.4,6.8179]
[1761397629686,0.3238,3949.5,3949.4,6.8179]
[1761397633497,0.3238,3949.5,3949.4,0.1599]
[1761397633700,0.3238,3949.5,3949.4,9.1059]
[1761397638402,0.81186061,3949.9,3949.8,0.1066]
[1761397638605,3.2078,3950.5,3950.4,0.0533]
[1761397638805,3.2078,3950.5,3950.4,9.1049]
[1761397639207,3.5316,3950.5,3950.4,9.1049]
[1761397641706,3.2078,3950.5,3950.4,9.1049]
[1761397647818,3.5316,3950.5,3950.4,9.1049]
[1761397648519,0.3238,3950.5,3950.4,9.1049]
[1761397650519,0.6796,3950.5,3950.4,0.1066]
[1761397650823,0.3238,3950.4,3950.0,0.0533]
[1761397651116,0.76,3950.4,3950.3,0.1066]
[1761397652818,0.76,3950.4,3950.3,9.0476]
[1761397653322,0.5423,3950.4,3950.3,9.1009]
[1761397653620,0.4362,3949.8,3949.3,0.68066162]
[1761397653922,0.1373,3950.0,3948.0,0.35]
[1761397653923,0.3238,3948.2,3948.0,0.35]
[1761397654219,0.5735,3948.0,3947.9,0.2149]
[1761397654406,1.14119112,3948.0,3947.9,0.2149]
[1761397654605,0.78619112,3948.0,3947.9,0.7896]
[1761397654806,3.2078,3948.1,3947.9,0.4396]
[1761397655019,3.2078,3948.1,3948.0,0.9253]
[1761397655211,3.20993342,3948.1,3948.0,0.92851328]
[1761397660625,3.43973342,3948.1,3948.0,0.92851328]
[1761397660813,3.43973342,3948.1,3946.6,4.6413]
[1761397660814,0.2298,3946.7,3946.6,4.6413]
[1761397661122,0.5725,3946.7,3946.6,4.6413]
[1761397661418,0.3427,3946.7,3946.6,4.6413]
[1761397661618,0.3427,3946.8,3946.6,4.6413]
[1761397661823,0.3427,3946.8,3946.6,4.64377405]
[1761397662718,0.3427,3946.8,3944.5,1.95264673]
[1761397662719,0.1405,3945.0,3944.5,1.82094673]
[1761397662921,0.1405,3945.0,3943.8,3.86479255]
[1761397662922,3.2078,3944.7,3943.8,3.86479255]
[1761397663122,0.3427,3944.8,3943.9,3.66414]
[1761397663826,0.34477443,3944.8,3943.9,3.66722769]
[1761397664024,0.34477443,3944.8,3944.1,0.45632]
[1761397664334,0.3427,3944.7,3944.1,0.45632]
[1761397665528,0.4832,3944.0,3943.9,0.00308769]
[1761397665820,0.4832,3944.0,3943.9,9.08508769]
[1761397666026,0.4832,3944.0,3943.9,9.08708769]
[1761397666231,0.4832,3944.0,3943.9,0.00308769]
[1761397666420,0.4832,3944.0,3943.9,9.08708769]
[1761397666930,0.3427,3944.6,3944.2,0.45631]
[1761397667631,0.9476,3944.0,3943.9,0.00308769]
[1761397667824,0.9476,3944.0,3943.0,9.086]
[1761397667825,0.5725,3943.1,3943.0,9.086]
[1761397668422,0.5725,3943.1,3941.0,1.14171]
[1761397668423,0.1405,3942.5,3942.1,7.29e-06]
[1761397668623,0.1405,3942.5,3940.9,3.2078]
[1761397668624,0.3427,3941.3,3941.0,0.2259]
[1761397668835,0.34478702,3941.3,3941.2,0.4474]
[1761397669220,0.8071,3941.1,3941.0,0.00318795]
[1761397669425,0.3427,3941.1,3941.0,3.28418795]
[1761397669627,0.3427,3941.1,3941.0,0.00318795]
[1761397670231,3.20988702,3941.3,3939.7,3.2078]
[1761397670232,0.3427,3940.4,3939.7,3.2078]
[1761397670538,0.3427,3940.3,3939.9,0.2259]
[1761397670927,0.3427,3940.3,3939.8,2.294]
[1761397670928,0.3427,3940.3,3940.0,0.2259]
[1761397671437,0.3427,3940.3,3940.1,0.2259]
[1761397671935,0.3427,3940.3,3940.2,0.45678]
[1761397672232,3.2078,3941.0,3940.3,0.2259]
[1761397672534,0.34478702,3941.3,3941.0,0.2259]
[1761397672742,0.34478702,3941.3,3941.1,9.229]
[1761397673235,0.34478702,3941.3,3941.1,9.68567]
[1761397674335,0.34478702,3941.3,3941.2,9.23]
[1761397674533,0.00208702,3941.3,3941.2,9.4559]
[1761397675329,0.00208702,3941.3,3941.2,9.9033]
[1761397676437,0.00208702,3941.3,3941.2,0.6733]
[1761397676734,0.00208702,3941.3,3941.2,9.9063]
[1761397677636,0.00208702,3941.3,3941.2,9.8993]
[1761397679035,0.5378,3942.0,3941.8,0.5392]
[1761397679237,0.5378,3942.0,3941.9,10.97878]
[1761397679536,0.5378,3942.0,3941.9,10.97478]
[1761397680134,0.54086448,3942.0,3941.9,10.97478]
[1761397680439,0.00306448,3942.0,3941.9,14.18258]
[1761397681140,0.5378,3942.6,3942.5,1.2962]
[1761397681327,0.5378,3942.6,3942.5,10.5172]
[1761397681637,0.9055,3942.6,3942.5,10.5172]
[1761397682141,0.9078755,3942.6,3942.5,10.5172]
[1761397682835,0.9078755,3942.6,3942.5,0.3777]
[1761397682836,1.2929755,3942.6,3942.5,0.3777]
[1761397683041,1.5164,3942.0,3941.9,0.3777]
[1761397683442,1.5164,3942.0,3941.9,9.5937]
[1761397684732,1.5164,3942.0,3941.9,9.5927]
[1761397685133,1.5164,3942.0,3941.9,9.972]
[1761397685840,0.5378,3942.4,3942.3,0.757]
[1761397686043,4.1156755,3942.6,3942.5,1.2962]
[1761397686238,0.9078755,3942.6,3942.5,1.2962]
[1761397687343,1.2929755,3942.6,3942.5,9.97]
[1761397688950,1.2929755,3942.6,3942.5,10.5125]
[1761397689138,1.90215401,3942.6,3942.5,10.5095]
[1761397689332,1.90215401,3942.6,3942.5,9.967]
[1761397691037,1.90215401,3942.6,3942.5,10.5095]
[1761397691239,0.61155401,3942.6,3942.5,10.6989]
[1761397692239,1.51565401,3942.6,3942.5,10.5095]
[1761397692441,1.88935401,3942.6,3942.5,9.967]
[1761397692946,1.2801755,3942.6,3942.5,9.967]
[1761397693143,0.9064755,3942.6,3942.5,10.5095]
[1761397693747,2.87733977,3942.6,3942.5,10.5095]
[1761397694449,2.26535567,3942.6,3942.5,10.5095]
[1761397694649,0.9064755,3942.6,3942.5,10.5095]
[1761397696351,1.2801755,3942.6,3942.5,10.5095]
[1761397697251,1.2801755,3942.6,3942.5,10.4875]
[1761397697845,1.8886334,3942.6,3942.5,10.4875]
[1761397700046,1.8886334,3942.6,3942.0,3.3208]
[1761397700047,0.2297,3942.5,3942.0,1.2756]
[1761397700352,0.2297,3942.5,3942.3,1.2756]
[1761397700353,0.9619579,3942.4,3942.3,1.2756]
[1761397700839,1.5125579,3942.4,3942.3,1.2756]
[1761397702146,3.32086885,3942.4,3942.3,1.2756]
[1761397702456,1.5125579,3942.4,3942.3,1.2756]
[1761397702753,3.32436482,3942.4,3942.3,1.2756]
[1761397703747,1.5125579,3942.4,3942.3,1.2756]
[1761397704257,3.32436482,3942.4,3942.3,1.2756]
[1761397704646,1.5125579,3942.4,3942.3,1.2756]
[1761397704847,1.5125579,3942.4,3942.3,10.4526]
[1761397706663,1.8862579,3942.4,3942.3,9.9051]
[1761397707551,1.8862579,3942.4,3942.3,9.9021]
[1761397708558,3.69806482,3942.4,3942.3,9.5556]
[1761397709256,1.8862579,3942.4,3942.3,9.5556]
[1761397711662,1.8862579,3942.4,3942.3,9.5486]
[1761397712465,1.8862579,3942.4,3942.3,9.8951]
[1761397713266,3.2474243,3942.4,3942.3,9.8951]
[1761397713871,3.2474243,3942.4,3942.3,9.5486]
[1761397714261,3.24769074,3942.4,3942.3,9.5486]
[1761397714769,3.24769074,3942.4,3942.3,0.3866]
[1761397714971,3.24769074,3942.4,3942.3,9.5406]
[1761397715268,3.24804475,3942.4,3942.3,9.5406]
[1761397717382,1.8862579,3942.4,3942.3,9.5406]
[1761397717979,1.8862579,3942.4,3942.3,10.3728]
[1761397718180,2.79407222,3942.4,3942.3,10.3728]
[1761397719478,1.8862579,3942.4,3942.3,10.3728]
[1761397719877,1.1590579,3942.4,3942.3,10.3728]
[1761397720380,0.6084579,3942.4,3942.3,10.3728]
[1761397721679,1.1114579,3942.4,3942.3,10.3728]
[1761397723781,1.4758579,3942.4,3942.3,10.3728]
[1761397724580,1.1114579,3942.4,3942.3,10.3728]
[1761397724976,0.6084579,3942.4,3942.3,10.3728]
[1761397730595,0.0023755,3942.6,3942.5,1.3508]
[1761397730988,0.58237742,3942.6,3942.5,1.3508]
[1761397738986,0.0023755,3942.6,3942.5,1.3508]
[1761397740591,0.4541755,3942.6,3942.5,1.3508]
[1761397742502,0.0023755,3942.6,3942.5,1.3508]
[1761397744702,0.0023755,3942.6,3942.5,10.4448]
[1761397746406,0.0023755,3942.6,3942.5,1.3508]
[1761397746596,0.0023755,3942.6,3942.5,10.4418]
[1761397748799,3.6488,3943.4,3942.6,0.4565]
[1761397749004,0.441,3943.4,3943.3,1.0223]
[1761397749303,1.3348948,3943.4,3943.3,10.1093]
[1761397749514,1.6220948,3943.4,3943.3,10.1093]
[1761397749900,1.33750443,3943.4,3943.3,10.1112149]
[1761397750102,0.75820963,3943.4,3943.3,10.1112149]
[1761397753799,0.44360963,3943.4,3943.3,10.1112149]
[1761397754003,0.44360963,3943.4,3943.3,13.3190149]
[1761397754707,1.04540963,3943.4,3943.3,4.2320149]
[1761397755010,1.04540963,3943.4,3943.3,12.8800149]
[1761397756411,1.04540963,3943.4,3943.3,13.3100149]
[1761397760914,1.04540963,3943.4,3943.3,10.1022149]
[1761397761413,1.04540963,3943.4,3943.3,9.6722149]
[1761397761913,1.04540963,3943.4,3943.3,10.1022149]
[1761397763115,1.04540963,3943.4,3943.3,9.6722149]
[1761397763718,1.04540963,3943.4,3943.3,10.1022149]
[1761397764317,1.04540963,3943.4,3943.3,9.6602149]
[1761397764518,1.04540963,3943.4,3943.3,9.6572149]
[1761397768014,1.04540963,3943.4,3943.3,10.0872149]
[1761397768517,1.04540963,3943.4,3943.3,10.0852149]
[1761397771320,1.04540963,3943.4,3943.3,1.0242149]
[1761397771520,1.04540963,3943.4,3943.3,10.0782149]
[1761397772723,1.61679008,3943.4,3943.3,10.0762149]
[1761397773625,1.61679008,3943.4,3943.3,1.0242149]
[1761397773826,0.75820963,3943.4,3943.3,10.0742149]
[1761397774121,1.32965302,3943.4,3943.3,10.0742149]
[1761397774325,0.44360963,3943.4,3943.3,10.0742149]
[1761397774715,0.00260963,3943.4,3943.3,10.0742149]
[1761397774921,0.44360963,3943.4,3943.3,10.0742149]
[1761397775631,1.01521912,3943.4,3943.3,10.0742149]
[1761397776329,0.44360963,3943.4,3943.3,10.0742149]
[1761397777116,1.01530329,3943.4,3943.3,10.0742149]
[1761397778224,0.57430329,3943.4,3943.3,10.0742149]
[1761397778530,0.57430329,3943.4,3943.3,13.2820149]
[1761397781432,0.00260963,3943.4,3943.3,13.2820149]
[1761397781836,0.57471966,3943.4,3943.3,13.2820149]
[1761397782935,0.00260963,3943.4,3943.3,14.6476057]
[1761397783229,0.00260963,3943.4,3943.3,13.2820149]
[1761397786841,0.6711,3944.6,3944.5,0.5791]
[1761397787143,1.24160623,3944.6,3944.5,9.6121]
[1761397787343,1.24160623,3944.6,3944.5,9.9531]
[1761397787845,1.24470155,3944.6,3944.5,9.9531]
[1761397788142,0.67419532,3944.6,3944.5,9.9531]
[1761397789446,0.67419532,3944.6,3944.5,9.9711]
[1761397790444,0.37959532,3944.6,3944.5,9.9711]
[1761397791241,0.00309532,3944.6,3944.5,9.9711]
[1761397791643,0.37959532,3944.6,3944.5,9.9711]
[1761397793646,0.00309532,3944.6,3944.5,9.9711]
[1761397795050,0.00309532,3944.6,3944.5,10.0676]
[1761397797060,0.37959532,3944.6,3944.5,10.0676]
[1761397797356,0.00309532,3944.6,3944.5,10.0676]
[1761397800362,0.00309532,3944.6,3944.5,9.9711]
[1761397800759,0.00309532,3944.6,3944.5,0.9201]
[1761397801063,0.00309532,3944.6,3944.5,9.9521]
[1761397801258,0.63179532,3944.6,3944.5,0.9201]
[1761397801458,0.63179532,3944.6,3944.5,9.9511]
[1761397802466,0.00309532,3944.6,3944.5,9.9511]
[1761397803464,0.38029532,3944.6,3944.5,9.9511]
[1761397807366,0.00309532,3944.6,3944.5,9.9511]
[1761397811470,0.3732,3945.3,3945.2,0.7625]
[1761397811671,0.3732,3945.3,3945.2,9.7835]
[1761397812469,0.37553394,3945.3,3945.2,9.7835]
[1761397812771,0.87933394,3945.3,3945.2,9.5216]
[1761397813286,1.44957983,3945.3,3945.2,9.5216]
[1761397816676,1.44957983,3945.3,3945.2,9.014]
[1761397818279,0.877,3944.9,3944.8,0.5006]
[1761397818477,0.877,3944.9,3944.8,9.5126]
[1761397819479,0.3732,3944.8,3944.5,4.57514079]
[1761397819774,0.6308,3944.4,3944.3,0.2529]
[1761397819972,1.44786697,3944.4,3944.3,0.2529]
[1761397820179,1.44786697,3944.4,3944.3,9.2679]
[1761397821670,0.7856,3944.0,3943.9,0.5006]
[1761397821869,1.0318,3944.0,3943.9,0.5006]
[1761397822080,1.0318,3944.0,3943.9,9.5136]
[1761397822574,1.0318,3944.0,3943.9,9.5216]
[1761397822779,1.0318,3944.0,3943.9,9.5206]
[1761397823378,1.0318,3944.0,3943.9,9.2729]
[1761397823578,1.60206875,3944.0,3943.9,9.2729]
[1761397824081,1.60206875,3944.0,3943.9,9.2719]
[1761397824277,1.60206875,3944.0,3943.5,0.2619]
[1761397824581,0.6308,3943.6,3943.5,0.7625]
[1761397824779,0.6308,3943.6,3943.5,9.7815]
[1761397824973,0.6308,3943.6,3943.5,0.7625]
[1761397825278,0.6308,3943.6,3943.5,9.5196]
[1761397826282,0.6308,3943.6,3943.5,9.5186]
[1761397826477,0.6308,3943.6,3943.5,9.7805]
[1761397827177,0.6308,3943.6,3943.5,9.7795]
[1761397829274,0.528,3943.5,3943.3,0.0019149]
[1761397829481,0.6308,3943.4,3943.3,0.7644149]
[1761397829680,0.6308,3943.4,3943.3,8.3194149]
[1761397830783,0.877,3943.4,3943.3,8.0575149]
[1761397831589,0.877,3943.4,3943.3,0.5025149]
[1761397831881,0.877,3943.4,3943.3,9.5345149]
[1761397832072,0.877,3943.4,3943.3,9.7964149]
[1761397833181,0.877,3943.4,3943.3,9.5335149]
[1761397833387,0.877,3943.4,3943.3,9.7954149]
[1761397833883,0.877,3943.4,3943.3,9.5335149]
[1761397834785,0.877,3943.4,3943.3,9.7954149]
[1761397835989,0.3732,3943.4,3943.3,9.7924149]
[1761397836689,0.6308,3943.4,3943.3,9.7924149]
[1761397836891,0.877,3943.4,3943.3,9.7924149]
[1761397837187,0.3732,3943.4,3943.3,9.7924149]
[1761397837588,0.6308,3943.4,3943.3,9.7924149]
[1761397838891,0.3732,3943.4,3943.3,9.7924149]
[1761397839193,0.3511,3943.5,3943.4,0.6405]
[1761397839390,0.4987,3943.5,3943.4,0.6405]
[1761397839584,0.3511,3943.5,3943.4,0.6405]
[1761397842192,0.7344,3943.5,3943.4,0.427]
[1761397842390,0.7344,3943.5,3943.4,9.6635]
[1761397842694,0.7344,3943.5,3943.4,9.45]
[1761397842993,0.7344,3943.5,3943.4,9.6635]
[1761397843695,0.3511,3943.5,3943.4,9.6635]
[1761397844594,0.7344,3943.5,3943.4,9.6635]
[1761397849398,1.30696527,3943.5,3943.4,9.6635]
[1761397851889,1.52906527,3943.5,3943.4,0.2135]
[1761397852096,1.52906527,3943.5,3943.4,9.2285]
[1761397852692,1.52906527,3943.5,3943.4,9.442]
[1761397853594,1.52906527,3943.5,3943.4,9.6555]
[1761397853897,1.52906527,3943.5,3943.4,9.442]
[1761397854099,1.52906527,3943.5,3943.4,9.6555]
[1761397855797,0.92366527,3943.5,3943.4,9.6555]
[1761397856998,1.07126527,3943.5,3943.4,9.6555]
[1761397858000,0.92366527,3943.5,3943.4,9.6555]
[1761397858898,0.57256527,3943.5,3943.4,9.6555]
[1761397859094,0.57256527,3943.5,3943.4,12.8633]
[1761397865201,0.89206527,3943.5,3943.4,12.8633]
[1761397865603,0.89206527,3943.5,3943.4,3.8483]
[1761397865791,0.89206527,3943.5,3943.4,12.8633]
[1761397866396,0.89206527,3943.5,3943.4,9.6555]
[1761397867200,0.89206527,3943.5,3943.4,0.6405]
[1761397867406,1.25256527,3943.5,3943.4,9.6545]
[1761397870408,1.02016527,3943.5,3943.4,9.6545]
[1761397871407,1.02016527,3943.5,3943.4,0.6405]
[1761397871706,1.02016527,3943.5,3943.4,9.6545]
[1761397874105,0.89206527,3943.5,3943.4,9.6545]
[1761397877110,1.23996527,3943.5,3943.4,9.6545]
[1761397879914,1.02406527,3943.5,3943.4,9.6545]
[1761397880516,0.89206527,3943.5,3943.4,9.6545]
[1761397882314,0.89206527,3943.5,3943.4,0.6405]
[1761397882615,0.89206527,3943.5,3943.4,9.6535]
[1761397886111,0.57256527,3943.5,3943.4,9.6535]
[1761397886921,0.89236527,3943.5,3943.4,9.6535]
[1761397891526,1.24026527,3943.5,3943.4,9.6535]
[1761397891919,1.45326527,3943.5,3943.4,9.44]
[1761397892826,1.45326527,3943.5,3943.3,0.0019149]
[1761397892827,0.7487,3943.4,3943.3,0.0019149]
[1761397893027,1.10826527,3943.4,3943.3,9.6529149]
[1761397893629,0.89236527,3943.4,3943.3,9.6529149]
[1761397895927,0.57256527,3943.4,3943.3,9.6529149]
[1761397896634,0.57256527,3943.4,3943.3,0.6409149]
[1761397896824,0.89236527,3943.4,3943.3,9.6529149]
[1761397900535,0.57256527,3943.4,3943.3,9.6529149]
[1761397901537,0.92576527,3943.4,3943.3,9.6529149]
[1761397904936,0.92576527,3943.4,3943.3,9.6509149]
[1761397907640,1.14966527,3943.4,3943.3,9.6509149]
[1761397907843,1.37966527,3943.4,3943.3,0.4279149]
[1761397908032,1.37966527,3943.4,3943.3,9.4379149]
[1761397908228,1.37966527,3943.4,3943.3,0.4279149]
[1761397908545,1.37966527,3943.4,3943.3,9.0119149]
[1761397912948,1.37966527,3943.4,3943.3,9.2253149]
[1761397913639,1.37966527,3943.4,3943.3,9.0119149]
[1761397914244,1.37966527,3943.4,3943.3,9.6521149]
[1761397914547,1.14966527,3943.4,3943.3,9.6521149]
[1761397914730,0.92576527,3943.4,3943.3,9.6521149]
[1761397917948,0.92576527,3943.4,3943.3,0.6421149]
[1761397918247,0.92576527,3943.4,3943.3,9.6521149]
[1761397921241,1.14526527,3943.4,3943.3,9.6521149]
[1761397921442,1.36736527,3943.4,3943.3,9.4387149]
[1761397922044,1.36736527,3943.4,3943.3,9.0109149]
[1761397923052,1.36736527,3943.4,3943.3,0.0019149]
[1761397923349,1.36736527,3943.4,3943.3,9.2238149]
[1761397923655,1.36736527,3943.4,3943.3,9.4367149]
[1761397924942,1.36736527,3943.4,3943.3,9.6496149]
[1761397928451,0.92576527,3943.4,3943.3,9.6496149]
[1761397929647,1.14636527,3943.4,3943.3,9.6496149]
[1761397932553,1.14636527,3943.4,3943.3,9.4367149]
[1761397933254,1.14636527,3943.4,3943.3,9.4347149]
[1761397933456,1.36576527,3943.4,3943.3,9.4347149]
[1761397936267,1.36576527,3943.4,3943.3,9.6478149]
[1761397937673,1.14636527,3943.4,3943.3,9.6478149]
[1761397938471,0.57256527,3943.4,3943.3,9.6478149]
[1761397942776,0.91736527,3943.4,3943.3,9.6478149]
[1761397943776,0.57256527,3943.4,3943.3,9.6478149]
[1761397944079,0.91736527,3943.4,3943.3,9.6478149]
[1761397944976,0.57256527,3943.4,3943.3,9.6478149]
[1761397946377,0.91736527,3943.4,3943.3,9.6478149]
[1761397949386,0.91565795,3943.4,3943.3,9.6478149]
[1761397951680,0.57085795,3943.4,3943.3,9.6478149]
[1761397959989,0.90395795,3943.4,3943.3,9.6478149]
[1761397960189,0.57085795,3943.4,3943.3,9.6478149]
[1761397964086,0.3331,3943.7,3943.6,0.6387]
[1761397964386,0.90334995,3943.7,3943.6,9.6407]
[1761397975699,1.11954995,3943.7,3943.6,9.6407]
[1761397976298,1.11954995,3943.7,3943.6,0.6387]
[1761397976494,1.35094995,3943.7,3943.6,9.4078]
[1761397976700,1.35094995,3943.7,3943.3,0.4277149]